bitfinex/quotes_SOLUSD_20260109
["timestamp","ask_amount","ask_price","bid_price","bid_amount"]
[1767974121219,13.2,138.23,138.15,18.09546269]
[1767974121424,13.2,138.23,138.17,7.23728631]
[1767974121634,20.4343912,138.23,138.13,31.29844947]
[1767974121827,20.4343912,138.23,138.19,11.65870212]
[1767974122227,13.23849674,138.23,138.19,11.65870212]
[1767974122438,13.2,138.23,138.16,7.23746177]
[1767974122626,0.04491594,138.19,138.15,11.65870212]
[1767974122936,0.69351626,138.21,138.15,11.65870212]
[1767974123133,0.69351626,138.21,138.16,11.65870212]
[1767974123322,0.03849674,138.18,138.11,0.71223094]
[1767974123538,11.65870212,138.17,138.12,11.65870212]
[1767974123732,0.69351626,138.2,138.11,0.71223094]
[1767974124039,25.32399556,138.21,138.15,0.71223094]
[1767974124040,11.65870212,138.21,138.15,0.71223094]
[1767974124238,12.34560269,138.21,138.15,0.71223094]
[1767974124446,12.33276364,138.17,138.09,0.71223094]
[1767974124622,0.33553054,138.16,138.09,0.71223094]
[1767974124822,11.65870212,138.15,138.09,12.37093306]
[1767974125029,7.23903286,138.14,138.07,0.71223094]
[1767974125231,11.65870212,138.16,138.11,11.65870212]
[1767974125548,13.2,138.17,138.13,0.71223094]
[1767974125745,13.2,138.17,138.07,25.34910333]
[1767974126045,13.2,138.17,138.14,11.65870212]
[1767974126046,13.89351626,138.17,138.14,11.65870212]
[1767974126250,13.89351626,138.17,138.07,61.56261821]
[1767974126546,13.2,138.17,138.15,11.65870212]
[1767974126725,12.35221838,138.2,138.1,11.65870212]
[1767974126926,8.07159065,138.2,138.07,61.56261821]
[1767974127232,7.93011465,138.19,138.15,11.65870212]
[1767974127544,13.89351626,138.21,138.14,7.23884376]
[1767974127725,13.89351626,138.21,138.17,11.65870212]
[1767974128128,0.14216157,138.23,138.15,0.71223094]
[1767974128129,7.23479504,138.23,138.15,0.71223094]
[1767974128343,12.35221838,138.22,138.15,0.71223094]
[1767974128548,12.35221838,138.2,138.15,11.65870212]
[1767974128748,0.69351626,138.19,138.14,11.65870212]
[1767974128926,0.69351626,138.19,138.16,11.65870212]
[1767974129123,0.69351626,138.16,138.09,0.71223094]
[1767974129327,0.69351626,138.16,138.12,11.65870212]
[1767974129547,6.6801107,138.17,138.06,12.74793118]
[1767974129750,0.69351626,138.18,138.1,7.24095787]
[1767974129938,0.69351626,138.18,138.09,18.10308262]
[1767974129939,0.69351626,138.17,138.07,13.2]
[1767974130260,0.69351626,138.17,138.14,11.65870212]
[1767974130447,0.69351626,138.19,138.13,7.23949807]
[1767974130651,0.69351626,138.19,138.15,11.65870212]
[1767974130849,12.35221838,138.19,138.1,18.10199213]
[1767974131148,13.2,138.2,138.15,11.65870212]
[1767974131448,13.89351626,138.2,138.16,11.65870212]
[1767974131628,21.12973205,138.2,138.13,7.95175765]
[1767974131828,32.78843417,138.2,138.13,7.95175765]
[1767974132054,32.78843417,138.2,138.15,11.65870212]
[1767974132253,21.12973205,138.2,138.16,11.65870212]
[1767974132557,12.35221838,138.19,138.14,11.65870212]
[1767974132740,0.69351626,138.16,138.09,0.71223094]
[1767974132927,0.69351626,138.16,138.12,11.65870212]
[1767974133123,0.69351626,138.16,138.06,25.94793118]
[1767974133124,0.71032985,138.14,138.06,19.99102883]
[1767974133328,0.71032985,138.14,138.07,11.65870212]
[1767974133531,7.94883871,138.15,138.1,11.65870212]
[1767974133751,0.71032985,138.14,138.07,7.92608159]
[1767974134053,0.71032985,138.14,138.09,11.65870212]
[1767974134237,0.71032985,138.12,138.08,11.65870212]
[1767974134429,0.71032985,138.12,138.07,11.65870212]
[1767974134749,12.36903197,138.12,138.06,12.74793118]
[1767974134932,0.71032985,138.12,138.06,12.74793118]
[1767974135126,0.71032985,138.12,138.08,11.65870212]
[1767974135332,0.71032985,138.14,138.07,0.68353415]
[1767974135532,21.14849717,138.16,138.11,11.65870212]
[1767974135728,13.91032985,138.16,138.12,11.65870212]
[1767974135929,13.91032985,138.16,138.08,0.68353415]
[1767974136350,0.71032985,138.18,138.13,11.65870212]
[1767974136532,0.71032985,138.18,138.12,11.65870212]
[1767974136533,0.71032985,138.17,138.12,11.65870212]
[1767974136842,0.71032985,138.17,138.1,0.68353415]
[1767974137042,0.71032985,138.2,138.13,11.65870212]
[1767974137246,0.71032985,138.2,138.12,7.23963244]
[1767974137247,0.71032985,138.19,138.14,11.65870212]
[1767974137451,7.23536647,138.21,138.14,0.68353415]
[1767974137452,0.71032985,138.21,138.14,0.68353415]
[1767974137650,0.71032985,138.22,138.17,11.65870212]
[1767974137851,11.65870212,138.21,138.16,11.65870212]
[1767974138261,12.36903197,138.2,138.13,7.23942906]
[1767974138459,0.71032985,138.19,138.15,11.65870212]
[1767974138634,0.71032985,138.21,138.16,11.65870212]
[1767974138954,0.71032985,138.21,138.13,7.23951928]
[1767974138955,0.71032985,138.2,138.13,7.23951928]
[1767974139138,7.94665155,138.2,138.13,7.23951928]
[1767974139337,7.94665155,138.2,138.14,11.65870212]
[1767974139550,0.71032985,138.2,138.16,11.65870212]
[1767974139754,0.71032985,138.2,138.14,11.65870212]
[1767974139755,12.36903197,138.19,138.14,11.65870212]
[1767974139940,0.71032985,138.18,138.11,7.92407172]
[1767974140147,0.71032985,138.18,138.12,7.23999383]
[1767974140347,0.71032985,138.18,138.14,11.65870212]
[1767974140957,12.51119354,138.2,138.13,0.68353415]
[1767974141156,12.51119354,138.2,138.12,7.23961532]
[1767974141157,0.71032985,138.18,138.12,7.23961532]
[1767974141461,19.60597897,138.18,138.11,7.92397929]
[1767974141641,0.71032985,138.16,138.1,7.24064981]
[1767974141835,11.65870212,138.15,138.09,0.68353415]
[1767974142035,0.71032985,138.16,138.12,11.65870212]
[1767974142451,11.65870212,138.15,138.09,0.68353415]
[1767974142656,12.36903197,138.14,138.08,7.2420791]
[1767974142849,0.71032985,138.16,138.11,11.65870212]
[1767974143056,12.36903197,138.16,138.11,11.65870212]
[1767974143459,13.93032985,138.18,138.12,11.65870212]
[1767974143637,12.36903197,138.18,138.11,0.68353415]
[1767974144040,12.36903197,138.18,138.13,11.65870212]
[1767974144239,0.71032985,138.15,138.09,0.68353415]
[1767974144447,12.36903197,138.15,138.1,11.65870212]
[1767974144657,12.36903197,138.15,138.09,0.68353415]
[1767974144862,12.36903197,138.15,138.09,12.34223627]
[1767974145061,13.93032985,138.17,138.09,0.68353415]
[1767974145240,7.23849914,138.16,138.07,0.68353415]
[1767974145441,25.58903197,138.17,138.12,11.65870212]
[1767974145841,13.93032985,138.17,138.13,11.65870212]
[1767974146040,0.14216157,138.2,138.15,11.65870212]
[1767974146041,0.71032985,138.19,138.15,11.65870212]
[1767974146246,0.71032985,138.21,138.15,0.68353415]
[1767974146444,12.36903197,138.23,138.16,0.68353415]
[1767974146659,0.71032985,138.23,138.17,0.68353415]
[1767974146962,0.71032985,138.25,138.21,11.65870212]
[1767974147150,7.94412614,138.24,138.19,11.65870212]
[1767974147567,7.94412614,138.24,138.14,13.90353415]
[1767974147568,0.71032985,138.23,138.14,13.90353415]
[1767974147759,0.71032985,138.21,138.16,11.65870212]
[1767974148074,12.36903197,138.24,138.18,11.65870212]
[1767974148567,12.36903197,138.24,138.17,0.70508679]
[1767974148752,12.36903197,138.24,138.19,11.65870212]
[1767974148953,0.71032985,138.24,138.19,11.65870212]
[1767974149169,7.23431961,138.23,138.17,0.70508679]
[1767974149465,7.23431961,138.23,138.18,11.65870212]
[1767974149665,19.60304487,138.24,138.19,11.65870212]
[1767974149964,18.89218885,138.25,138.18,0.70508679]
[1767974150175,0.69099274,138.23,138.18,11.65870212]
[1767974150538,7.23348673,138.25,138.2,11.65870212]
[1767974150768,5.38665632,138.24,138.2,11.65870212]
[1767974150939,0.69099274,138.2,138.13,0.70508679]
[1767974151268,11.65870212,138.18,138.13,11.65870212]
[1767974151439,12.34969486,138.17,138.11,0.70508679]
[1767974151642,12.34969486,138.17,138.11,12.36378891]
[1767974151878,0.69099274,138.17,138.12,11.65870212]
[1767974152040,0.69099274,138.17,138.13,11.65870212]
[1767974152241,7.92768663,138.19,138.13,11.65870212]
[1767974152465,5.39474628,138.18,138.13,11.65870212]
[1767974152767,19.58638875,138.19,138.13,11.65870212]
[1767974152969,5.39474149,138.18,138.13,11.65870212]
[1767974153265,19.58680796,138.18,138.13,11.65870212]
[1767974153448,17.05625182,138.17,138.12,12.36378891]
[1767974153649,11.65870212,138.19,138.14,11.65870212]
[1767974153948,0.69099274,138.17,138.11,7.24039726]
[1767974154159,0.69099274,138.15,138.1,11.65870212]
[1767974154357,17.74888554,138.14,138.07,0.70508679]
[1767974154670,0.69099274,138.14,138.09,11.65870212]
[1767974154866,0.69099274,138.14,138.1,11.65870212]
[1767974155063,0.69099274,138.14,138.08,7.94693384]
[1767974155282,0.69099274,138.14,138.09,11.65870212]
[1767974155475,0.69099274,138.14,138.08,7.94693384]
[1767974155774,0.69099274,138.14,138.09,11.65870212]
[1767974156156,0.69099274,138.14,138.1,11.65870212]
[1767974156563,0.69099274,138.16,138.11,7.19625831]
[1767974156770,5.39885902,138.15,138.11,7.19625831]
[1767974156962,5.39885099,138.14,138.11,7.19625831]
[1767974157264,15.12538301,138.16,138.11,7.19625831]
[1767974157465,13.28708512,138.15,138.1,7.19625831]
[1767974157789,12.59609238,138.14,138.09,7.9013451]
[1767974157974,0.69099274,138.15,138.09,7.9013451]
[1767974158177,7.23813196,138.16,138.11,7.19625831]
[1767974158347,5.39936752,138.15,138.11,7.19625831]
[1767974158552,15.12485709,138.17,138.11,7.19625831]
[1767974158752,5.39903683,138.16,138.11,7.19625831]
[1767974158979,6.09002957,138.15,138.08,0.70508679]
[1767974159285,6.09002957,138.15,138.1,7.19625831]
[1767974159286,5.39953007,138.14,138.1,7.19625831]
[1767974159455,7.92977543,138.15,138.1,7.19625831]
[1767974159784,7.88725105,138.17,138.11,0.70508679]
[1767974159956,5.3993414,138.16,138.11,7.9013451]
[1767974160152,5.3993414,138.15,138.11,7.9013451]
[1767974160355,0.69099274,138.21,138.14,7.9013451]
[1767974160558,5.39802684,138.2,138.16,7.19625831]
[1767974160765,0.69099274,138.21,138.16,7.19625831]
[1767974160982,6.08876705,138.2,138.16,7.19625831]
[1767974161296,0.69099274,138.23,138.19,7.19625831]
[1767974161452,5.3991463,138.22,138.19,7.19625831]
[1767974161652,21.14481527,138.24,138.19,7.19625831]
[1767974161881,6.08960515,138.23,138.18,7.19625831]
[1767974162185,0.69099274,138.25,138.21,7.19625831]
[1767974162351,0.69099274,138.24,138.17,0.70508679]
[1767974162557,5.39763701,138.23,138.19,7.19625831]
[1767974162757,0.69099274,138.24,138.2,7.19625831]
[1767974162976,13.89910774,138.28,138.23,7.19625831]
[1767974163159,13.89910774,138.28,138.19,7.23615806]
[1767974163160,0.67910774,138.25,138.19,0.71998654]
[1767974163496,0.67910774,138.24,138.2,7.19625831]
[1767974163785,0.67910774,138.28,138.23,7.19625831]
[1767974164084,0.67910774,138.28,138.21,0.71998654]
[1767974164269,7.91085629,138.28,138.21,0.71998654]
[1767974164468,14.09910774,138.3,138.25,7.19625831]
[1767974164801,14.09910774,138.3,138.23,0.71998654]
[1767974164970,21.32982643,138.3,138.26,7.19625831]
[1767974165173,8.10982643,138.3,138.23,0.71998654]
[1767974165476,0.2,138.3,138.26,0.71998654]
[1767974165693,13.87910774,138.36,138.29,7.19625831]
[1767974165988,0.67910774,138.38,138.3,0.57748195]
[1767974166161,7.87536605,138.36,138.31,7.19625831]
[1767974166368,0.67910774,138.36,138.31,7.19625831]
[1767974166673,7.87536605,138.36,138.31,7.19625831]
[1767974166863,7.22649999,138.38,138.32,7.19625831]
[1767974167057,7.2260721,138.39,138.34,7.19625831]
[1767974167257,0.67910774,138.37,138.28,0.57748195]
[1767974167457,15.10273849,138.37,138.32,7.19625831]
[1767974167681,14.42290337,138.38,138.33,7.19625831]
[1767974167979,7.87536605,138.36,138.29,0.57748195]
[1767974168181,0.67910774,138.37,138.3,7.19625831]
[1767974168389,7.87536605,138.35,138.28,7.80908435]
[1767974168590,7.87536605,138.35,138.3,7.19625831]
[1767974168803,0.67910774,138.35,138.3,7.19625831]
[1767974169091,7.87536605,138.35,138.3,7.19625831]
[1767974169278,7.87536605,138.34,138.29,7.19625831]
[1767974169481,0.67910774,138.34,138.29,7.19625831]
[1767974169695,7.90737309,138.35,138.3,7.19625831]
[1767974169876,7.90737309,138.35,138.28,0.57748195]
[1767974170201,0.67910774,138.34,138.3,7.19625831]
[1767974170491,0.67910774,138.34,138.28,0.57748195]
[1767974170789,0.67910774,138.34,138.3,7.19625831]
[1767974170984,0.67910774,138.34,138.31,7.19625831]
[1767974171186,0.28432314,138.37,138.3,0.57748195]
[1767974171187,0.67910774,138.37,138.3,0.57748195]
[1767974171494,0.67910774,138.37,138.31,0.57748195]
[1767974171794,0.67910774,138.38,138.34,7.19625831]
[1767974172282,0.67910774,138.38,138.32,7.2294914]
[1767974172483,0.67910774,138.38,138.34,7.19625831]
[1767974172680,0.67910774,138.38,138.35,7.19625831]
[1767974172881,0.67910774,138.36,138.29,0.57748195]
[1767974173080,7.87536605,138.36,138.31,7.19625831]
[1767974173384,0.67910774,138.35,138.31,7.19625831]
[1767974173591,0.67910774,138.34,138.3,7.19625831]
[1767974173888,0.67910774,138.36,138.32,7.19625831]
[1767974174268,0.67910774,138.36,138.3,7.23058261]
[1767974174470,0.67910774,138.35,138.3,7.19625831]
[1767974174670,0.67910774,138.35,138.27,0.57748195]
[1767974174872,7.87536605,138.35,138.3,7.19625831]
[1767974175386,7.87536605,138.34,138.29,7.19625831]
[1767974175891,0.67910774,138.34,138.3,7.19625831]
[1767974176088,0.67910774,138.34,138.27,0.57748195]
[1767974176278,0.67910774,138.33,138.29,7.19625831]
[1767974176588,0.67910774,138.32,138.27,7.23208348]
[1767974176771,7.87536605,138.32,138.27,7.19625831]
[1767974177091,0.67910774,138.32,138.27,7.19625831]
[1767974177290,0.67910774,138.32,138.28,7.19625831]
[1767974177488,0.28432314,138.36,138.25,0.57748195]
[1767974177489,0.67910774,138.37,138.31,7.19625831]
[1767974177691,0.67910774,138.35,138.29,7.80859806]
[1767974177890,0.67910774,138.35,138.31,7.19625831]
[1767974178395,7.87536605,138.37,138.32,7.19625831]
[1767974179093,0.67910774,138.35,138.3,7.23031084]
[1767974179285,0.67910774,138.35,138.31,7.19625831]
[1767974179791,0.67910774,138.32,138.26,0.57748195]
[1767974180092,7.87536605,138.31,138.25,7.19625831]
[1767974180394,7.87536605,138.31,138.25,14.42921587]
[1767974180692,7.19625831,138.3,138.25,14.42921587]
[1767974180885,7.87536605,138.31,138.26,7.19625831]
[1767974181189,7.87536605,138.31,138.2,0.57748195]
[1767974181190,0.67910774,138.26,138.2,0.57748195]
[1767974181398,0.67910774,138.26,138.21,7.23516028]
[1767974181694,0.67910774,138.28,138.23,7.19625831]
[1767974181876,7.87536605,138.27,138.22,14.4310623]
[1767974182083,7.87536605,138.27,138.22,14.4310907]
[1767974182378,0.67910774,138.29,138.25,7.19625831]
[1767974182692,7.87536605,138.29,138.24,7.19625831]
[1767974183370,7.87536605,138.29,138.23,7.2342802]
[1767974183572,7.87536605,138.29,138.24,7.19625831]
[1767974184092,0.67910774,138.29,138.25,7.19625831]
[1767974184293,13.2,138.3,138.26,7.77374026]
[1767974184499,0.67910774,138.31,138.24,7.81127384]
[1767974184795,0.67910774,138.31,138.27,7.19625831]
[1767974185394,0.67910774,138.37,138.3,7.19625831]
[1767974185580,0.67910774,138.37,138.33,7.19625831]
[1767974186083,15.1023776,138.37,138.32,7.19625831]
[1767974186388,0.67910774,138.35,138.31,7.19625831]
[1767974186969,0.67910774,138.35,138.3,7.23034788]
[1767974187170,0.67910774,138.38,138.34,7.19625831]
[1767974187389,0.67910774,138.4,138.36,7.19625831]
[1767974188078,0.67910774,138.4,138.33,18.07272464]
[1767974188278,0.67910774,138.39,138.34,7.22842148]
[1767974188473,0.67910774,138.38,138.29,0.72311808]
[1767974188672,0.67910774,138.31,138.26,7.23274989]
[1767974188903,21.07536605,138.33,138.28,7.19625831]
[1767974189601,21.07536605,138.33,138.26,25.31462461]
[1767974189602,13.87910774,138.33,138.29,7.19625831]
[1767974189798,13.2,138.33,138.29,7.19625831]
[1767974189986,0.28432314,138.36,138.32,7.19625831]
[1767974189987,13.2,138.36,138.32,7.19625831]
[1767974190891,13.87910774,138.36,138.32,7.19625831]
[1767974191590,13.2,138.37,138.34,7.19625831]
[1767974191793,0.67910774,138.37,138.33,7.19625831]
[1767974191996,0.67910774,138.37,138.3,0.57748195]
[1767974191997,0.67910774,138.36,138.3,0.57748195]
[1767974192306,0.67910774,138.36,138.32,7.19625831]
[1767974192488,7.87536605,138.35,138.3,7.19625831]
[1767974192795,7.87536605,138.35,138.3,14.42660631]
[1767974193298,7.87536605,138.35,138.3,7.19625831]
[1767974193481,0.67910774,138.35,138.3,7.19625831]
[1767974193688,7.87536605,138.35,138.3,7.19625831]
[1767974193997,0.67544879,138.34,138.3,14.42669191]
[1767974194400,0.67544879,138.32,138.27,7.19625831]
[1767974194592,0.67544879,138.34,138.3,7.19625831]
[1767974194793,7.8717071,138.34,138.29,14.42713251]
[1767974195102,21.0717071,138.34,138.29,14.42713251]
[1767974195325,13.87544879,138.34,138.29,14.42713251]
[1767974195505,13.87544879,138.34,138.27,18.6575569]
[1767974195506,13.87544879,138.34,138.3,14.42691155]
[1767974196200,13.87544879,138.34,138.31,7.19625831]
[1767974196403,7.8717071,138.32,138.27,7.23204586]
[1767974196596,7.19625831,138.29,138.25,7.23292829]
[1767974196788,13.87544879,138.29,138.25,7.23292829]
[1767974197304,0.67544879,138.28,138.24,14.42995638]
[1767974197509,0.67544879,138.28,138.25,7.23311979]
[1767974198901,0.67544879,138.27,138.24,7.23358909]
[1767974199208,0.67544879,138.26,138.23,7.23414116]
[1767974199592,0.67544879,138.28,138.24,14.43000359]
[1767974199981,7.8717071,138.28,138.24,7.23374528]
[1767974200186,7.8717071,138.28,138.24,7.23373026]
[1767974200498,7.8717071,138.28,138.23,7.19625831]
[1767974200820,7.23086359,138.3,138.22,7.234843]
[1767974200821,7.8717071,138.3,138.22,7.234843]
[1767974201007,0.67544879,138.24,138.16,0.57748195]
[1767974201312,0.67544879,138.24,138.18,7.23680669]
[1767974201313,7.8717071,138.23,138.18,7.23680669]
[1767974201487,0.67544879,138.23,138.16,0.57748195]
[1767974201687,0.67544879,138.23,138.2,7.19625831]
[1767974201890,0.67544879,138.23,138.19,7.19625831]
[1767974202310,0.67544879,138.23,138.14,18.67491043]
[1767974202311,0.67544879,138.22,138.14,18.67491043]
[1767974202489,0.67544879,138.22,138.18,7.19625831]
[1767974202830,0.67544879,138.21,138.16,7.19625831]
[1767974203013,13.2,138.2,138.17,7.19625831]
[1767974203189,13.87544879,138.2,138.17,7.19625831]
[1767974203389,13.87544879,138.2,138.12,18.09970528]
[1767974203390,0.67544879,138.19,138.13,7.23919177]
[1767974203602,0.67544879,138.19,138.12,0.57748195]
[1767974203603,0.67544879,138.19,138.12,18.67649487]
[1767974203815,0.67544879,138.19,138.17,7.19625831]
[1767974204213,0.67544879,138.21,138.18,7.19625831]
[1767974204412,0.67544879,138.21,138.17,7.19625831]
[1767974204596,15.10707487,138.21,138.16,7.19625831]
[1767974204796,7.91081656,138.21,138.17,7.19625831]
[1767974204998,15.10707487,138.21,138.16,7.19625831]
[1767974205326,0.67544879,138.2,138.16,7.19625831]
[1767974206004,0.67544879,138.2,138.13,0.68022739]
[1767974206325,0.67544879,138.18,138.14,7.19625831]
[1767974206526,21.08242365,138.18,138.14,7.19625831]
[1767974206704,20.43697486,138.18,138.13,7.19625831]
[1767974206909,27.63323317,138.18,138.13,7.19625831]
[1767974207307,104.5,138.23,138.17,7.19625831]
[1767974207511,20.39625831,138.22,138.17,7.19625831]
[1767974207807,6.6801107,138.26,138.19,7.19625831]
[1767974208106,6.6801107,138.26,138.16,0.68022739]
[1767974208107,7.19625831,138.24,138.2,7.19625831]
[1767974208310,14.43110131,138.22,138.15,0.68452994]
[1767974208511,7.87987071,138.2,138.13,0.68452994]
[1767974208711,7.87987071,138.2,138.15,7.19625831]
[1767974208909,0.6836124,138.2,138.15,7.19625831]
[1767974209109,0.6836124,138.19,138.16,7.19625831]
[1767974209308,0.6836124,138.21,138.14,0.68452994]
[1767974209514,0.6836124,138.21,138.19,7.19625831]
[1767974209921,0.82577397,138.21,138.13,0.72395569]
[1767974210114,7.19625831,138.18,138.13,7.19625831]
[1767974210359,13.8836124,138.18,138.14,7.19625831]
[1767974210530,0.6836124,138.18,138.15,7.19625831]
[1767974210712,0.6836124,138.2,138.16,7.19625831]
[1767974210914,13.8836124,138.2,138.14,7.92352405]
[1767974211114,21.07987071,138.2,138.14,26.02110621]
[1767974211319,21.07987071,138.2,138.15,7.19625831]
[1767974211733,13.8836124,138.2,138.16,7.19625831]
[1767974212029,7.19625831,138.19,138.14,7.92352405]
[1767974212228,7.87987071,138.19,138.14,7.19625831]
[1767974212541,7.87987071,138.19,138.15,7.19625831]
[1767974212542,0.6836124,138.19,138.15,7.19625831]
[1767974212866,0.6836124,138.18,138.13,15.1201386]
[1767974213011,0.6836124,138.18,138.11,18.10082931]
[1767974213012,7.19625831,138.24,138.17,7.19625831]
[1767974213343,7.19625831,138.24,138.19,7.19625831]
[1767974213518,0.6836124,138.24,138.2,7.19625831]
[1767974214450,0.6836124,138.24,138.14,39.26033601]
[1767974214656,0.6836124,138.24,138.2,7.19625831]
[1767974215230,0.6836124,138.24,138.21,7.19625831]
[1767974215542,0.6836124,138.24,138.2,7.19625831]
[1767974215945,0.6836124,138.24,138.14,75.45550033]
[1767974216251,13.8836124,138.26,138.23,7.19625831]
[1767974216462,7.19625831,138.28,138.22,7.23446823]
[1767974216463,0.6836124,138.25,138.22,7.23446823]
[1767974216749,7.23189508,138.28,138.2,18.08899616]
[1767974216750,0.6836124,138.26,138.2,18.08899616]
[1767974216929,0.6836124,138.26,138.22,7.19625831]
[1767974217556,0.6836124,138.26,138.23,7.19625831]
[1767974217731,0.6836124,138.26,138.2,18.08899616]
[1767974217931,0.6836124,138.26,138.22,7.19625831]
[1767974218132,0.6836124,138.26,138.21,14.43142184]
[1767974218631,0.6836124,138.26,138.21,7.23516353]
[1767974218832,0.6836124,138.24,138.19,18.91170531]
[1767974219032,0.6836124,138.24,138.2,11.67562797]
[1767974219251,0.6836124,138.24,138.19,7.23626418]
[1767974219451,0.6836124,138.24,138.2,7.23588884]
[1767974219653,0.6836124,138.24,138.19,11.67562797]
[1767974219848,0.6836124,138.26,138.21,18.91085109]
[1767974220550,12.35924037,138.27,138.21,7.23522312]
[1767974220746,0.6836124,138.24,138.18,18.09176877]
[1767974220945,0.6836124,138.23,138.19,11.67562797]
[1767974221148,0.6836124,138.23,138.18,18.09176877]
[1767974221348,12.35924037,138.25,138.2,18.91151084]
[1767974221653,0.6836124,138.26,138.22,11.67562797]
[1767974221859,0.6836124,138.31,138.25,11.67562797]
[1767974222055,0.6836124,138.31,138.2,11.67562797]
[1767974222056,12.35924037,138.32,138.27,18.90785477]
[1767974222253,11.67562797,138.3,138.25,7.23289312]
[1767974222449,0.6836124,138.31,138.26,7.23271883]
[1767974222658,11.67562797,138.3,138.25,7.23325065]
[1767974222861,12.35924037,138.31,138.26,18.90834746]
[1767974223055,12.35924037,138.31,138.26,11.67562797]
[1767974223358,11.67562797,138.3,138.25,18.90881349]
[1767974223751,12.35924037,138.31,138.26,11.67562797]
[1767974223953,19.58951753,138.31,138.23,25.31947497]
[1767974224151,0.676534,138.27,138.22,20.43466342]
[1767974224366,12.35216197,138.26,138.21,11.67562797]
[1767974224660,0.676534,138.26,138.2,18.91121953]
[1767974224865,11.67562797,138.25,138.2,18.91121953]
[1767974225062,11.67562797,138.25,138.21,7.23530928]
[1767974225667,0.676534,138.26,138.2,18.91129788]
[1767974225846,13.2,138.28,138.18,18.09119814]
[1767974225847,11.67562797,138.23,138.18,11.67562797]
[1767974226161,11.67562797,138.23,138.17,24.87562797]
[1767974226162,12.35216197,138.23,138.17,24.87562797]
[1767974226460,12.35216197,138.22,138.17,11.67562797]
[1767974226660,0.676534,138.22,138.17,11.67562797]
[1767974226861,12.35216197,138.22,138.18,7.23692599]
[1767974227162,21.11047056,138.24,138.18,18.91252933]
[1767974227350,12.35216197,138.23,138.18,18.91252933]
[1767974227956,18.08375455,138.25,138.2,11.67562797]
[1767974227957,25.55216197,138.25,138.2,11.67562797]
[1767974228461,12.35216197,138.24,138.18,18.09234332]
[1767974228667,0.676534,138.24,138.2,11.67562797]
[1767974229164,0.676534,138.24,138.18,18.09234332]
[1767974229371,0.676534,138.24,138.2,11.67562797]
[1767974229574,25.55216197,138.26,138.18,18.09234332]
[1767974229750,12.35216197,138.25,138.2,11.67562797]
[1767974230472,24.87562797,138.26,138.21,11.67562797]
[1767974230659,25.55216197,138.26,138.18,25.32928064]
[1767974230841,25.55216197,138.26,138.21,11.67562797]
[1767974231567,0.676534,138.25,138.18,25.32928064]
[1767974231765,12.35216197,138.26,138.21,11.67562797]
[1767974232148,0.676534,138.26,138.21,11.67562797]
[1767974232347,12.35216197,138.26,138.21,18.91071068]
[1767974232570,0.676534,138.26,138.21,18.91071068]
[1767974232776,12.35216197,138.26,138.21,18.91071068]
[1767974232979,12.35216197,138.26,138.21,7.23508271]
[1767974233150,0.676534,138.26,138.21,7.23508271]
[1767974233351,24.87562797,138.27,138.21,7.23508271]
[1767974233555,25.55216197,138.27,138.22,11.67562797]
[1767974233769,0.676534,138.3,138.24,11.67562797]
[1767974233972,0.676534,138.3,138.26,11.67562797]
[1767974234868,0.676534,138.3,138.26,18.90820146]
[1767974235863,0.676534,138.29,138.25,11.67562797]
[1767974236067,0.676534,138.29,138.25,18.90860205]
[1767974236253,0.676534,138.27,138.23,11.67562797]
[1767974236467,12.35216197,138.27,138.23,7.2342788]
[1767974236778,0.676534,138.27,138.23,18.90990677]
[1767974237072,12.35216197,138.27,138.22,18.91026219]
[1767974237256,0.676534,138.25,138.21,18.91069079]
[1767974237657,0.676534,138.24,138.2,20.43579633]
[1767974237857,11.67562797,138.24,138.19,11.67562797]
[1767974238059,11.67562797,138.24,138.2,7.23579456]
[1767974238574,12.35216197,138.23,138.18,11.67562797]
[1767974238873,11.67562797,138.2,138.16,7.23769548]
[1767974239074,0.676534,138.21,138.17,11.67562797]
[1767974239881,0.676534,138.21,138.18,11.67562797]
[1767974240076,31.28379897,138.25,138.17,7.2372674]
[1767974240077,13.876534,138.25,138.2,11.67562797]
[1767974240267,0.676534,138.24,138.2,11.67562797]
[1767974240468,0.676534,138.24,138.2,18.91114739]
[1767974240864,0.676534,138.24,138.2,11.67562797]
[1767974241165,12.35216197,138.24,138.19,11.67562797]
[1767974241371,0.676534,138.24,138.2,11.67562797]
[1767974241680,0.676534,138.24,138.19,7.23609607]
[1767974241877,0.676534,138.26,138.21,11.67562797]
[1767974242083,13.876534,138.26,138.2,25.32532109]
[1767974242261,13.876534,138.26,138.22,11.67562797]
[1767974242663,13.876534,138.26,138.22,7.23439431]
[1767974242864,0.676534,138.29,138.23,0.72343196]
[1767974243057,0.676534,138.31,138.27,11.67562797]
[1767974243256,0.676534,138.31,138.26,13.2]
[1767974243477,0.676534,138.31,138.27,11.67562797]
[1767974243664,12.35216197,138.3,138.22,25.32150181]
[1767974243865,0.676534,138.29,138.23,13.2]
[1767974244080,21.71,138.35,138.28,11.67562797]
[1767974244081,0.676534,138.31,138.28,11.67562797]
[1767974244881,0.676534,138.31,138.23,13.2]
[1767974244882,0.676534,138.31,138.26,7.2322483]
[1767974245054,0.676534,138.31,138.28,11.67562797]